Workbook

Sheet BallastierungsTabelle
B2: Ballastierung | C2: Freestyler 6 | T2: Version 3.1 Ersteller: Joel Messmer
B3: Schwerpunkt unballastiert [mm] | C3: 102 | G3: Flächeninhalt [dm2] | N3: 61.21
B4: Abfluggewicht unballastiert [g] | C4: 2400 | G4: Flächenbelastung [g/dm2] | N4: =C4/N3 -> 39.20927953
B6: Ballastkammerbezeichnung | C6: Abstand hinter der Nasenleiste [mm] | E6: Gewichte der einzelnen Ballaststücke [g] | R6: Ballastgewicht total | S6: Ballastgewicht einzelne Kammern | T6: Anleitung:
B7: Trimmblei in Schnauze/Heck | E7: 5 | F7: 10 | G7: 15 | H7: 20 | I7: 25 | J7: 30 | K7: 40 | L7: 45 | M7: 50 | N7: 55 | O7: 60 | P7: 65 | T7: 1. Schwerpunkt, Abfluggewicht und Flächeninhalt eintragen
B8: Rumpfballast (typisch schwerpunktneutral) | T8: Der ungefähre Flächeninhalt kann auch weiter unten im File berechnet werden
B9: Ballastkammer ganz vorne | T9: 2. Die Schwerpunkte aller verfügbaren Ballastkammern eintragen
B10: Ballastkammer vorne | C10: 0 | F10: 0 | G10: 0 | H10: 0 | I10: 0 | J10: 0 | K10: 0 | L10: 0 | M10: 0 | N10: 0 | O10: 0 | T10: Alle dadurch verwendbaren Zellen werden automatisch farbig markiert!
B11: Flächenverbinderkammer vorne | C11: 76 | J11: 140 | K11: 140 | T11: 3. Gewichte aller verfügbaren Ballaststücke eintragen
B12: Flächenverbinderkammer mitte | C12: 90 | J12: 140 | K12: 140 | T12: Die dicke mittlere Linie soll die Mitte (Rumpf) darstellen
B13: Flächenverbinderkammer hinten | T13: 4. Für jede gewünschte Ballaststufe durch Doppelklick die Ballaststücke aktivieren
B14: Ballastkammer hinten | C14: 111 | F14: 0 | G14: 132 | H14: 132 | I14: 132 | J14: 132 | K14: 132 | L14: 132 | M14: 132 | N14: 132 | O14: 0 | T14: Durch die Taste Delete oder durch erneuten Doppelklick können die Ballaststücke deaktiviert werden
B15: Ballastkammer ganz hinten | C15: 0 | F15: 0 | G15: 0 | H15: 0 | I15: 0 | J15: 0 | K15: 0 | L15: 0 | M15: 0 | N15: 0 | O15: 0 | T15: Sämtliche Daten werden automatisch berechnet!
E16: ="Maximale Ballastiermöglichkeit = " & SUM(E8:P15) & "g" -> Maximale Ballastiermöglichkeit = 1616g
B17: ="Ballastierung mit " & R17 & "g" -> Ballastierung mit 1616g | R17: =SUM(S17:S25) -> 1616 | S17: =$E7*E17+$F7*F17+$G7*G17+$H7*H17+$I7*I17+$J7*J17+$K7*K17+$L7*L17+$M7*M17+$N7*N17+$O7*O17+$P7*P17 -> 0
B18: SWP-Verschiebung pro 5g Trimmblei beträgt | C18: =ROUND((C21-C26),2)&"mm" -> 0mm | S18: =$E8*E18+$F8*F18+$G8*G18+$H8*H18+$I8*I18+$J8*J18+$K8*K18+$L8*L18+$M8*M18+$N8*N18+$O8*O18+$P8*P18 -> 0 | T18: Versatz des Rumpfballast vom unballastierten SP nach hinten
B19: *Empfohlene Höhenruderweg-Reduzierung = | C19: =ROUND((R17/100),0)*2&"%" -> 32% | S19: =$E9*E19+$F9*F19+$G9*G19+$H9*H19+$I9*I19+$J9*J19+$K9*K19+$L9*L19+$M9*M19+$N9*N19+$O9*O19+$P9*P19 -> 0
B20: Abfluggewicht [g] = | C20: =R17+$C$4 -> 4016 | S20: 0
B21: Schwerpunkt [mm] = | C21: =($C$4*$C$3+S17*$C$7+S18*($C$8+Q18)+S19*$C$9+S20*$C$10+S21*$C$11+S22*$C$12+S23*$C$13+S24*$C$14+S25*$C$15)/C20 -> 101.7171315 | J21: 1 | K21: 1 | S21: 280
B22: Flächenbelastung [g/dm2] = | C22: =C20/$N$3 -> 65.61019441 | J22: 1 | K22: 1 | S22: 280
J23: 1 | K23: 1 | S23: 0
G24: 1 | H24: 1 | I24: 1 | J24: 1 | K24: 1 | L24: 1 | M24: 1 | N24: 1 | S24: 1056
S25: 0
C26: =IF($C$7<>0,(C20*C21+5*$C$7)/(C20+5),C21) -> 101.7171315
B27: ="Ballastierung mit " & R27 & "g" -> Ballastierung mit 808g | R27: =SUM(S27:S35) -> 808 | S27: =$E7*E27+$F7*F27+$G7*G27+$H7*H27+$I7*I27+$J7*J27+$K7*K27+$L7*L27+$M7*M27+$N7*N27+$O7*O27+$P7*P27 -> 0
B28: SWP-Verschiebung pro 5g Trimmblei beträgt | C28: =ROUND((C31-C36),2)&"mm" -> 0mm | S28: =$E8*E28+$F8*F28+$G8*G28+$H8*H28+$I8*I28+$J8*J28+$K8*K28+$L8*L28+$M8*M28+$N8*N28+$O8*O28+$P8*P28 -> 0 | T28: Versatz des Rumpfballast vom unballastierten SP nach hinten
B29: *Empfohlene Höhenruderweg-Reduzierung = | C29: =ROUND((R27/100),0)*2&"%" -> 16% | S29: 0
B30: Abfluggewicht [g] = | C30: =R27+$C$4 -> 3208 | S30: 0
B31: Schwerpunkt [mm] = | C31: =($C$4*$C$3+S27*$C$7+S28*($C$8+Q28)+S29*$C$9+S30*$C$10+S31*$C$11+S32*$C$12+S33*$C$13+S34*$C$14+S35*$C$15)/C30 -> 101.2119701 | J31: 1 | K31: 1 | S31: 280
B32: Flächenbelastung [g/dm2] = | C32: =C30/$N$3 -> 52.40973697 | S32: 0
J33: 1 | K33: 1 | S33: 0
I34: 1 | J34: 1 | K34: 1 | L34: 1 | S34: 528
S35: 0
C36: =IF($C$7<>0,(C30*C31+5*$C$7)/(C30+5),C31) -> 101.2119701
B37: ="Ballastierung mit " & R37 & "g" -> Ballastierung mit 544g | R37: =SUM(S37:S45) -> 544 | S37: =$E7*E37+$F7*F37+$G7*G37+$H7*H37+$I7*I37+$J7*J37+$K7*K37+$L7*L37+$M7*M37+$N7*N37+$O7*O37+$P7*P37 -> 0
B38: SWP-Verschiebung pro 5g Trimmblei beträgt | C38: =ROUND((C41-C46),2)&"mm" -> 0mm | S38: =$E8*E38+$F8*F38+$G8*G38+$H8*H38+$I8*I38+$J8*J38+$K8*K38+$L8*L38+$M8*M38+$N8*N38+$O8*O38+$P8*P38 -> 0 | T38: Versatz des Rumpfballast vom unballastierten SP nach hinten
B39: *Empfohlene Höhenruderweg-Reduzierung = | C39: =ROUND((R37/100),0)*2&"%" -> 10% | S39: 0
B40: Abfluggewicht [g] = | C40: =R37+$C$4 -> 2944 | S40: 0
B41: Schwerpunkt [mm] = | C41: =($C$4*$C$3+S37*$C$7+S38*($C$8+Q38)+S39*$C$9+S40*$C$10+S41*$C$11+S42*$C$12+S43*$C$13+S44*$C$14+S45*$C$15)/C40 -> 101.6657609 | S41: 0
B42: Flächenbelastung [g/dm2] = | C42: =C40/$N$3 -> 48.09671622 | J42: 1 | K42: 1 | S42: 280
J43: 1 | K43: 1 | S43: 0
J44: 1 | K44: 1 | S44: 264
S45: 0
C46: =IF($C$7<>0,(C40*C41+5*$C$7)/(C40+5),C41) -> 101.6657609
B47: ="Ballastierung mit " & R47 & "g" -> Ballastierung mit 0g | R47: =SUM(S47:S55) -> 0 | S47: =$E7*E47+$F7*F47+$G7*G47+$H7*H47+$I7*I47+$J7*J47+$K7*K47+$L7*L47+$M7*M47+$N7*N47+$O7*O47+$P7*P47 -> 0
B48: SWP-Verschiebung pro 5g Trimmblei beträgt | C48: =ROUND((C51-C56),2)&"mm" -> 0mm | S48: =$E8*E48+$F8*F48+$G8*G48+$H8*H48+$I8*I48+$J8*J48+$K8*K48+$L8*L48+$M8*M48+$N8*N48+$O8*O48+$P8*P48 -> 0 | T48: Versatz des Rumpfballast vom unballastierten SP nach hinten
B49: *Empfohlene Höhenruderweg-Reduzierung = | C49: =ROUND((R47/100),0)*2&"%" -> 0% | S49: 0
B50: Abfluggewicht [g] = | C50: =R47+$C$4 -> 2400 | S50: 0
B51: Schwerpunkt [mm] = | C51: =($C$4*$C$3+S47*$C$7+S48*($C$8+Q48)+S49*$C$9+S50*$C$10+S51*$C$11+S52*$C$12+S53*$C$13+S54*$C$14+S55*$C$15)/C50 -> 102 | S51: 0
B52: Flächenbelastung [g/dm2] = | C52: =C50/$N$3 -> 39.20927953 | S52: 0
S53: 0
S54: 0
S55: 0
C56: =IF($C$7<>0,(C50*C51+5*$C$7)/(C50+5),C51) -> 102
B57: ="Ballastierung mit " & R57 & "g" -> Ballastierung mit 1352g | R57: =SUM(S57:S65) -> 1352 | S57: =$E7*E57+$F7*F57+$G7*G57+$H7*H57+$I7*I57+$J7*J57+$K7*K57+$L7*L57+$M7*M57+$N7*N57+$O7*O57+$P7*P57 -> 0
B58: SWP-Verschiebung pro 5g Trimmblei beträgt | C58: =ROUND((C61-C66),2)&"mm" -> 0mm | S58: =$E8*E58+$F8*F58+$G8*G58+$H8*H58+$I8*I58+$J8*J58+$K8*K58+$L8*L58+$M8*M58+$N8*N58+$O8*O58+$P8*P58 -> 0 | T58: Versatz des Rumpfballast vom unballastierten SP nach hinten
B59: *Empfohlene Höhenruderweg-Reduzierung = | C59: =ROUND((R57/100),0)*2&"%" -> 28% | S59: 0
B60: Abfluggewicht [g] = | C60: =R57+$C$4 -> 3752 | S60: 0
B61: Schwerpunkt [mm] = | C61: =($C$4*$C$3+S57*$C$7+S58*($C$8+Q58)+S59*$C$9+S60*$C$10+S61*$C$11+S62*$C$12+S63*$C$13+S64*$C$14+S65*$C$15)/C60 -> 101.0639659 | J61: 1 | K61: 1 | S61: 280
B62: Flächenbelastung [g/dm2] = | C62: =C60/$N$3 -> 61.29717366 | J62: 1 | K62: 1 | S62: 280
S63: 0
H64: 1 | I64: 1 | J64: 1 | K64: 1 | L64: 1 | M64: 1 | S64: 792
S65: 0
C66: =IF($C$7<>0,(C60*C61+5*$C$7)/(C60+5),C61) -> 101.0639659
B67: ="Ballastierung mit " & R67 & "g" -> Ballastierung mit 0g | R67: =SUM(S67:S75) -> 0 | S67: =$E7*E67+$F7*F67+$G7*G67+$H7*H67+$I7*I67+$J7*J67+$K7*K67+$L7*L67+$M7*M67+$N7*N67+$O7*O67+$P7*P67 -> 0
B68: SWP-Verschiebung pro 5g Trimmblei beträgt | C68: =ROUND((C71-C76),2)&"mm" -> 0mm | S68: =$E8*E68+$F8*F68+$G8*G68+$H8*H68+$I8*I68+$J8*J68+$K8*K68+$L8*L68+$M8*M68+$N8*N68+$O8*O68+$P8*P68 -> 0 | T68: Versatz des Rumpfballast vom unballastierten SP nach hinten
B69: *Empfohlene Höhenruderweg-Reduzierung = | C69: =ROUND((R67/100),0)*2&"%" -> 0% | S69: 0
B70: Abfluggewicht [g] = | C70: =R67+$C$4 -> 2400 | S70: 0
B71: Schwerpunkt [mm] = | C71: =($C$4*$C$3+S67*$C$7+S68*($C$8+Q68)+S69*$C$9+S70*$C$10+S71*$C$11+S72*$C$12+S73*$C$13+S74*$C$14+S75*$C$15)/C70 -> 102 | S71: 0
B72: Flächenbelastung [g/dm2] = | C72: =C70/$N$3 -> 39.20927953 | S72: 0
S73: 0
S74: 0
S75: 0
C76: =IF($C$7<>0,(C70*C71+5*$C$7)/(C70+5),C71) -> 102
B77: *Die empfohlene Höhenruderweg-Reduzierung gilt für ein typisches F3B/F3F-Modell, wenn der Höhenruderausschlag unballastiert am Limit (kurz vor dem Abreissen) ist!
C79: Berechnung des Flächeninhaltes:
D80: Spannweite Tragfläche: | E80: 292 | F80: cm
D81: Tragflächentiefe innen: | E81: 24.2 | F81: cm
D82: Tragflächentiefe aussen: | E82: 15 | F82: cm
D84: Spannweite Leitwerk: | E84: 58 | F84: cm
D85: Leitwerktiefe innen: | E85: 12.3 | F85: cm
D86: Leitwerktiefe aussen: | E86: 8 | F86: cm | K86: Ungefährer Flächeninhalt: | L86: =(((E81+E82)/2*E80)+((E84+E85)/2*E86))/100 -> 60.044 | M86: dm2
B88: Berechnungsgrundlage für Schwerpunktverschiebung:
